[Event "Lichtenrader Herbst 2019"]
[Site "Berlin"]
[Date "2019.10.12"]
[Round "1.1"]
[White "Fock, Amina"]
[Black "Kovalev, Andrei"]
[Result "0-1"]
[ECO "B23"]
[WhiteElo "1749"]
[BlackElo "2511"]
[Annotator "ChessBase"]
[PlyCount "50"]
[EventDate "2019.10.12"]
[EventType "swiss"]
[EventCountry "GER"]
[SourceTitle "playchess.com"]
[Source "ChessBase"]
[SourceQuality "1"]
[TimeControl "40/5400+30:1800+30"]

1. e4 {[%emt 0:00:00]} c5 {[%emt 0:00:00]} 2. Nc3 {[%emt 0:00:00]} g6 {[%emt 0:00:34]} 3. f4 {[%emt 0:00:39]} Bg7 {[%emt 0:00:22]} 4. Nf3 {[%emt 0:00:35]} Nc6 {[%emt 0:00:13]} 5. Bb5 {[%emt 0:00:40]} Nd4 {[%emt 0:00:46]} 6. O-O {[%emt 0:00:24]} a6 {[%emt 0:00:34]} 7. Bd3 {[%emt 0:04:03]} d6 {[%emt 0:00:28]} 8. Nd5 {[%emt 0:08:23]} e6 {[%emt 0:03:19]} 9. Ne3 {[%emt 0:00:42]} Ne7 {[%emt 0:02:03]} 10. c3 {[%emt 0:03:22]} Nxf3+ {[%emt 0:17:28]} 11. Qxf3 {[%emt 0:01:37]} f5 {[%emt 0:02:17]} 12. exf5 {[%emt 0:13:39]} gxf5 {[%emt 0:00:12]} 13. Qh5+ {[%emt 0:08:13]} Kd7 {[%emt 0:00:13]} 14. g4 {[%emt 0:14:27]} Kc7 {[%emt 0:11:50]} 15. gxf5 {[%emt 0:08:09]} exf5 {[%emt 0:00:14]} 16. Nxf5 {[%emt 0:08:27]} Nxf5 {[%emt 0:00:46]} 17. Bxf5 {[%emt 0:00:14]} Bxf5 {[%emt 0:01:59]} 18. Qxf5 {[%emt 0:00:07]} Rg8 {[%emt 0:05:23]} 19. Qf7+ {[%emt 0:02:35]} Kc6 {[%emt 0:01:29]} 20. Kh1 {[%emt 0:00:49]} Qh4 {[%emt 0:03:50]} 21. Qc4 {[%emt 0:11:06]} Rae8 {[%emt 0:04:00]} 22. Qa4+ {[%emt 0:01:51]} Kc7 {[%emt 0:02:04]} 23. Qd1 {[%emt 0:00:12]} Qh3 {[%emt 0:02:16]} 24. Rf2 {[%emt 0:02:44]} Bf6 {[%emt 0:04:20]} 25. Qf1 {[%emt 0:03:17]} Qh5 {[%emt 0:06:58]} 0-1

[Event "Lichtenrader Herbst 2019"]
[Site "Berlin"]
[Date "2019.10.12"]
[Round "1.2"]
[White "Starostits, Ilmars"]
[Black "Hohn, August"]
[Result "1-0"]
[ECO "B15"]
[WhiteElo "2479"]
[BlackElo "1832"]
[Annotator "ChessBase"]
[PlyCount "81"]
[EventDate "2019.10.12"]
[EventType "swiss"]
[EventCountry "GER"]
[SourceTitle "playchess.com"]
[Source "ChessBase"]
[SourceQuality "1"]
[TimeControl "40/5400+30:1800+30"]

1. e4 {[%emt 0:00:00]} c6 {[%emt 0:03:48]} 2. d4 {[%emt 0:00:00]} d5 {[%emt 0:00:07]} 3. Nc3 {[%emt 0:00:00]} e6 {[%emt 0:00:04]} 4. Nf3 {[%emt 0:00:10]} Nf6 {[%emt 0:00:05]} 5. Bd3 {[%emt 0:00:28]} dxe4 {[%emt 0:00:03]} 6. Nxe4 {[%emt 0:00:06]} Nxe4 {[%emt 0:00:14]} 7. Bxe4 {[%emt 0:00:05]} Nd7 {[%emt 0:00:21]} 8. Qe2 {[%emt 0:01:11]} Nf6 {[%emt 0:00:03]} 9. Bd3 {[%emt 0:00:04]} Be7 {[%emt 0:00:15]} 10. Bd2 {[%emt 0:00:07]} b6 {[%emt 0:00:26]} 11. g4 {[%emt 0:00:33]} Qc7 {[%emt 0:01:51]} 12. c4 {[%emt 0:00:25]} Bb7 {[%emt 0:00:10]} 13. Rg1 {[%emt 0:00:36]} O-O-O {[%emt 0:00:08]} 14. O-O-O {[%emt 0:00:22]} c5 {[%emt 0:00:09]} 15. Ne5 {[%emt 0:00:48]} Bd6 {[%emt 0:01:53]} 16. g5 {[%emt 0:01:33]} cxd4 {[%emt 0:00:36]} 17. gxf6 {[%emt 0:01:58]} Bxe5 {[%emt 0:00:19]} 18. fxg7 {[%emt 0:00:09]} Rhg8 {[%emt 0:00:09]} 19. f4 {[%emt 0:00:42]} Bf6 {[%emt 0:03:05]} 20. f5 {[%emt 0:02:15]} Rde8 {[%emt 0:05:09]} 21. fxe6 {[%emt 0:04:09]} fxe6 {[%emt 0:00:11]} 22. Qh5 {[%emt 0:00:43]} Bxg7 {[%emt 0:01:08]} 23. Rdf1 {[%emt 0:01:35]} Ref8 {[%emt 0:05:56]} 24. Rxf8+ {[%emt 0:01:50]} Rxf8 {[%emt 0:00:16]} 25. Qxh7 {[%emt 0:00:10]} Be5 {[%emt 0:00:31]} 26. Qh6 {[%emt 0:00:37]} Re8 {[%emt 0:02:26]} 27. Qg6 {[%emt 0:00:06]} Bc6 {[%emt 0:00:30]} 28. h4 {[%emt 0:00:50]} Bf4 {[%emt 0:00:44]} 29. h5 {[%emt 0:01:00]} Bxd2+ {[%emt 0:10:34]} 30. Kxd2 {[%emt 0:00:03]} Qf4+ {[%emt 0:00:10]} 31. Kc2 {[%emt 0:00:30]} Rh8 {[%emt 0:01:29]} 32. Qxe6+ {[%emt 0:02:43]} Bd7 {[%emt 0:00:20]} 33. Rg8+ {[%emt 0:04:04]} Rxg8 {[%emt 0:05:14]} 34. Qxg8+ {[%emt 0:00:07]} Kc7 {[%emt 0:00:09]} 35. Qh7 {[%emt 0:00:16]} Qf2+ {[%emt 0:02:26]} 36. Kb3 {[%emt 0:00:23]} a5 {[%emt 0:00:58]} 37. a3 {[%emt 0:02:05]} Qf3 {[%emt 0:01:05]} 38. h6 {[%emt 0:01:30]} Kc8 {[%emt 0:00:36]} 39. Qh8+ {[%emt 0:01:50]} Kb7 {[%emt 0:00:09]} 40. Qxd4 {[%emt 0:00:39]} Bf5 {[%emt 0:01:50]} 41. Kc3 {[%emt 0:01:51]} 1-0

[Event "Lichtenrader Herbst 2019"]
[Site "Berlin"]
[Date "2019.10.12"]
[Round "1.3"]
[White "Grozea, Filip"]
[Black "Shishkin, Vadim"]
[Result "0-1"]
[ECO "B20"]
[WhiteElo "1724"]
[BlackElo "2428"]
[Annotator "NA"]
[PlyCount "50"]
[EventDate "2019.10.12"]
[EventType "swiss"]
[EventCountry "GER"]
[SourceTitle "playchess.com"]
[Source "ChessBase"]
[SourceQuality "1"]
[TimeControl "40/5400+30:1800+30"]

1. e4 {[%emt 0:00:00]} c5 {[%emt 0:00:00]} 2. b3 {[%emt 0:00:00]} g6 {[%emt 0:00:07]} 3. Bb2 {[%emt 0:00:36]} Nf6 {[%emt 0:00:06]} 4. e5 {[%emt 0:02:42]} Nd5 {[%emt 0:00:07]} 5. Bc4 {[%emt 0:01:40]} e6 {[%emt 0:00:43]} 6. Bxd5 {[%emt 0:03:29]} exd5 {[%emt 0:00:06]} 7. d4 {[%emt 0:04:30]} Nc6 {[%emt 0:06:02]} 8. dxc5 {[%emt 0:03:55]} Qa5+ {[%emt 0:28:50]} 9. Bc3 {[%emt 0:13:58]} Qxc5 {[%emt 0:00:55]} 10. e6 {[%emt 0:03:04]} d4 {[%emt 0:01:25]} 11. exf7+ {[%emt 0:00:15]} Kxf7 {[%emt 0:00:44]} 12. Qf3+ {[%emt 0:02:45]} Kg7 {[%emt 0:00:33]} 13. Bd2 {[%emt 0:01:14]} Be7 {[%emt 0:08:49]} 14. h4 {[%emt 0:04:21]} Rf8 {[%emt 0:06:33]} 15. Qe2 {[%emt 0:00:29]} Bf6 {[%emt 0:03:14]} 16. h5 {[%emt 0:03:10]} g5 {[%emt 0:01:50]} 17. f4 {[%emt 0:02:20]} d3 {[%emt 0:01:26]} 18. Qxd3 {[%emt 0:00:48]} Bxa1 {[%emt 0:01:39]} 19. Nh3 {[%emt 0:02:30]} d6 {[%emt 0:02:56]} 20. Nxg5 {[%emt 0:02:30]} Bf5 {[%emt 0:01:10]} 21. Qg3 {[%emt 0:01:13]} Kh8 {[%emt 0:01:52]} 22. Nc3 {[%emt 0:03:22]} Rae8+ {[%emt 0:00:34]} 23. Kf1 {[%emt 0:01:24]} Bxc2 {[%emt 0:01:59]} 24. h6 {[%emt 0:02:15]} Qd4 {[%emt 0:00:48]} 25. Nge4 {[%emt 0:03:13]} Bxe4 {[%emt 0:01:12]} 0-1

[Event "Lichtenrader Herbst 2019"]
[Site "Berlin"]
[Date "2019.10.12"]
[Round "1.4"]
[White "Jacobi, Robin"]
[Black "Kraft, Adrian"]
[Result "1-0"]
[ECO "A26"]
[WhiteElo "2267"]
[BlackElo "1672"]
[Annotator "NA"]
[PlyCount "63"]
[EventDate "2019.10.12"]
[EventType "swiss"]
[EventCountry "GER"]
[SourceTitle "playchess.com"]
[Source "ChessBase"]
[SourceQuality "1"]
[TimeControl "40/5400+30:1800+30"]

1. Nf3 {[%emt 0:00:00]} g6 {[%emt 0:00:05]} 2. g3 {[%emt 0:00:00]} Bg7 {[%emt 0:00:07]} 3. Bg2 {[%emt 0:00:15]} d6 {[%emt 0:00:42]} 4. c4 {[%emt 0:00:59]} Nf6 {[%emt 0:00:35]} 5. Nc3 {[%emt 0:00:10]} O-O {[%emt 0:00:16]} 6. O-O {[%emt 0:00:12]} Nc6 {[%emt 0:03:25]} 7. d3 {[%emt 0:03:11]} e5 {[%emt 0:02:29]} 8. Rb1 {[%emt 0:00:07]} Nd7 {[%emt 0:02:53]} 9. b4 {[%emt 0:00:59]} f5 {[%emt 0:01:12]} 10. Bg5 {[%emt 0:00:22]} Nf6 {[%emt 0:00:56]} 11. Nd5 {[%emt 0:02:31]} h6 {[%emt 0:02:32]} 12. Nxf6+ {[%emt 0:00:14]} Bxf6 {[%emt 0:00:58]} 13. Bxh6 {[%emt 0:00:06]} Rf7 {[%emt 0:01:32]} 14. b5 {[%emt 0:01:05]} Nb8 {[%emt 0:04:00]} 15. Qd2 {[%emt 0:02:18]} Rh7 {[%emt 0:12:40]} 16. Bg5 {[%emt 0:01:50]} Nd7 {[%emt 0:06:21]} 17. Rfc1 {[%emt 0:09:00]} Nc5 {[%emt 0:03:09]} 18. Bxf6 {[%emt 0:05:25]} Qxf6 {[%emt 0:01:15]} 19. Qg5 {[%emt 0:00:17]} Qxg5 {[%emt 0:06:51]} 20. Nxg5 {[%emt 0:00:05]} Rh5 {[%emt 0:01:24]} 21. h4 {[%emt 0:01:35]} Rb8 {[%emt 0:06:03]} 22. Rc3 {[%emt 0:00:37]} b6 {[%emt 0:05:00]} 23. e3 {[%emt 0:09:29]} f4 {[%emt 0:07:55]} 24. Bf3 {[%emt 0:09:07]} Rh8 {[%emt 0:01:57]} 25. exf4 {[%emt 0:00:53]} Bf5 {[%emt 0:03:01]} 26. fxe5 {[%emt 0:06:01]} Bxd3 {[%emt 0:02:08]} 27. Rd1 {[%emt 0:01:02]} dxe5 {[%emt 0:01:22]} 28. Rcxd3 {[%emt 0:01:03]} Nxd3 {[%emt 0:00:10]} 29. Rxd3 {[%emt 0:00:03]} Kf8 {[%emt 0:03:51]} 30. Rd7 {[%emt 0:00:37]} Rc8 {[%emt 0:01:18]} 31. Rf7+ {[%emt 0:00:47]} Kg8 {[%emt 0:01:01]} 32. Bd5 {[%emt 0:00:17]} 1-0

[Event "Lichtenrader Herbst 2019"]
[Site "Berlin"]
[Date "2019.10.12"]
[Round "1.5"]
[White "Seitz, Manuel"]
[Black "Noetzel, Felix"]
[Result "0-1"]
[ECO "C55"]
[WhiteElo "1809"]
[BlackElo "2233"]
[Annotator "NA"]
[PlyCount "72"]
[EventDate "2019.10.12"]
[EventType "swiss"]
[EventCountry "GER"]
[SourceTitle "playchess.com"]
[Source "ChessBase"]
[SourceQuality "1"]
[TimeControl "40/5400+30:1800+30"]

1. e4 {[%emt 0:00:00]} e5 {[%emt 0:00:00]} 2. Nf3 {[%emt 0:00:00]} Nc6 {[%emt 0:00:00]} 3. Bc4 {[%emt 0:00:09]} Nf6 {[%emt 0:00:02]} 4. Nc3 {[%emt 0:04:24]} Nxe4 {[%emt 0:00:50]} 5. Nxe4 {[%emt 0:01:10]} d5 {[%emt 0:00:05]} 6. Bxd5 {[%emt 0:01:45]} Qxd5 {[%emt 0:00:07]} 7. d3 {[%emt 0:01:36]} Bg4 {[%emt 0:06:19]} 8. Be3 {[%emt 0:12:59]} O-O-O {[%emt 0:07:50]} 9. h3 {[%emt 0:08:14]} f5 {[%emt 0:11:38]} 10. hxg4 {[%emt 0:06:31]} fxe4 {[%emt 0:00:09]} 11. dxe4 {[%emt 0:09:10]} Qxe4 {[%emt 0:00:10]} 12. Nd2 {[%emt 0:04:48]} Qxg2 {[%emt 0:06:11]} 13. Qf3 {[%emt 0:02:07]} Qxf3 {[%emt 0:00:09]} 14. Nxf3 {[%emt 0:00:02]} Be7 {[%emt 0:04:16]} 15. Ng5 {[%emt 0:06:23]} Bxg5 {[%emt 0:02:36]} 16. Bxg5 {[%emt 0:00:10]} Rd6 {[%emt 0:00:22]} 17. Be3 {[%emt 0:04:29]} h6 {[%emt 0:08:31]} 18. c3 {[%emt 0:03:00]} e4 {[%emt 0:03:10]} 19. Ke2 {[%emt 0:04:01]} Rg6 {[%emt 0:14:00]} 20. Rag1 {[%emt 0:07:10]} Ne5 {[%emt 0:02:52]} 21. g5 {[%emt 0:02:31]} h5 {[%emt 0:00:56]} 22. Rg2 {[%emt 0:04:00]} Ra6 {[%emt 0:06:07]} 23. Bd4 {[%emt 0:03:35]} Re8 {[%emt 0:13:58]} 24. Rxh5 {[%emt 0:06:18]} Rxa2 {[%emt 0:00:14]} 25. Rh7 {[%emt 0:01:02]} Rxb2+ {[%emt 0:02:10]} 26. Ke3 {[%emt 0:00:32]} Nc4+ {[%emt 0:00:46]} 27. Kf4 {[%emt 0:00:04]} e3 {[%emt 0:01:32]} 28. Rh1 {[%emt 0:04:17]} e2 {[%emt 0:04:08]} 29. Re1 {[%emt 0:00:01]} g6 {[%emt 0:02:17]} 30. Rh2 {[%emt 0:01:15]} a5 {[%emt 0:01:51]} 31. Rhh1 {[%emt 0:02:08]} a4 {[%emt 0:00:36]} 32. Ra1 {[%emt 0:00:35]} a3 {[%emt 0:00:19]} 33. Rhe1 {[%emt 0:00:09]} a2 {[%emt 0:00:36]} 34. Be3 {[%emt 0:00:08]} Nxe3 {[%emt 0:01:28]} 35. fxe3 {[%emt 0:00:06]} Rf8+ {[%emt 0:00:13]} 36. Kg3 {[%emt 0:00:33]} Rf1 {[%emt 0:00:43]} 0-1

[Event "Lichtenrader Herbst 2019"]
[Site "Berlin"]
[Date "2019.10.12"]
[Round "1.6"]
[White "Polatel, Ali"]
[Black "Stein, Siegfried"]
[Result "1-0"]
[ECO "A42"]
[WhiteElo "2235"]
[BlackElo "1798"]
[Annotator "NA"]
[PlyCount "81"]
[EventDate "2019.10.12"]
[EventType "swiss"]
[EventCountry "GER"]
[SourceTitle "playchess.com"]
[Source "ChessBase"]
[SourceQuality "1"]
[TimeControl "40/5400+30:1800+30"]

1. Nf3 {[%emt 0:00:00]} g6 {[%emt 0:00:00]} 2. c4 {[%emt 0:00:06]} Bg7 {[%emt 0:00:09]} 3. e4 {[%emt 0:00:04]} d6 {[%emt 0:00:21]} 4. Nc3 {[%emt 0:01:01]} e5 {[%emt 0:01:11]} 5. d4 {[%emt 0:02:18]} Nc6 {[%emt 0:02:04]} 6. d5 {[%emt 0:03:32]} Nd4 {[%emt 0:01:00]} 7. Nxd4 {[%emt 0:03:01]} exd4 {[%emt 0:00:18]} 8. Nb5 {[%emt 0:00:14]} c5 {[%emt 0:03:16]} 9. dxc6 {[%emt 0:07:21]} bxc6 {[%emt 0:00:56]} 10. Nxd4 {[%emt 0:01:47]} Qb6 {[%emt 0:00:41]} 11. Nb3 {[%emt 0:00:51]} Nf6 {[%emt 0:03:16]} 12. Bd3 {[%emt 0:02:58]} O-O {[%emt 0:01:30]} 13. O-O {[%emt 0:00:28]} Ng4 {[%emt 0:03:05]} 14. Be2 {[%emt 0:05:05]} Nf6 {[%emt 0:01:33]} 15. Qc2 {[%emt 0:00:46]} c5 {[%emt 0:02:19]} 16. Bd2 {[%emt 0:06:04]} Bb7 {[%emt 0:01:03]} 17. Bd3 {[%emt 0:02:37]} a5 {[%emt 0:01:17]} 18. Bc3 {[%emt 0:00:23]} Rfe8 {[%emt 0:00:58]} 19. Rfe1 {[%emt 0:00:36]} a4 {[%emt 0:02:55]} 20. Nd2 {[%emt 0:03:47]} Bc6 {[%emt 0:02:17]} 21. Nf1 {[%emt 0:06:32]} a3 {[%emt 0:11:06]} 22. b3 {[%emt 0:01:17]} Qb7 {[%emt 0:02:55]} 23. f3 {[%emt 0:00:31]} Qa7 {[%emt 0:03:39]} 24. Kh1 {[%emt 0:01:34]} Re7 {[%emt 0:00:44]} 25. Rad1 {[%emt 0:00:58]} Rae8 {[%emt 0:03:20]} 26. Qc1 {[%emt 0:04:13]} Qc7 {[%emt 0:06:47]} 27. Kg1 {[%emt 0:05:58]} Qa7 {[%emt 0:01:26]} 28. Kh1 {[%emt 0:00:09]} Qc7 {[%emt 0:00:35]} 29. Ne3 {[%emt 0:00:50]} Qa7 {[%emt 0:03:42]} 30. Bf1 {[%emt 0:01:28]} Qc7 {[%emt 0:11:04]} 31. Kg1 {[%emt 0:02:38]} Re6 {[%emt 0:03:32]} 32. Qxa3 {[%emt 0:02:09]} Ra8 {[%emt 0:00:29]} 33. Qb2 {[%emt 0:00:27]} Qa7 {[%emt 0:02:45]} 34. Nd5 {[%emt 0:02:27]} Ne8 {[%emt 0:04:38]} 35. Bxg7 {[%emt 0:01:37]} Nxg7 {[%emt 0:00:28]} 36. Nf4 {[%emt 0:00:14]} Qxa2 {[%emt 0:03:42]} 37. Qxa2 {[%emt 0:02:02]} Rxa2 {[%emt 0:00:14]} 38. Nxe6 {[%emt 0:00:07]} Nxe6 {[%emt 0:00:31]} 39. Rxd6 {[%emt 0:00:15]} Nd4 {[%emt 0:01:48]} 40. Rd1 {[%emt 0:00:20]} Be8 {[%emt 0:01:01]} 41. b4 {[%emt 0:34:36]} 1-0

[Event "Lichtenrader Herbst 2019"]
[Site "Berlin"]
[Date "2019.10.12"]
[Round "1.7"]
[White "Becker, Werner"]
[Black "Schnabel, Ralf"]
[Result "0-1"]
[ECO "A80"]
[WhiteElo "1760"]
[BlackElo "2235"]
[Annotator "NA"]
[PlyCount "42"]
[EventDate "2019.10.12"]
[EventType "swiss"]
[EventCountry "GER"]
[SourceTitle "playchess.com"]
[Source "ChessBase"]
[SourceQuality "1"]
[TimeControl "40/5400+30:1800+30"]

1. d4 {[%emt 0:00:00]} f5 {[%emt 0:00:00]} 2. Bg5 {[%emt 0:00:22]} g6 {[%emt 0:00:15]} 3. Nd2 {[%emt 0:00:26]} Bg7 {[%emt 0:00:19]} 4. e3 {[%emt 0:00:36]} Nf6 {[%emt 0:01:42]} 5. c3 {[%emt 0:01:45]} Nc6 {[%emt 0:01:38]} 6. h4 {[%emt 0:07:29]} e5 {[%emt 0:06:31]} 7. d5 {[%emt 0:22:25]} Nb8 {[%emt 0:04:00]} 8. Qb3 {[%emt 0:13:06]} d6 {[%emt 0:02:54]} 9. Ngf3 {[%emt 0:00:58]} h6 {[%emt 0:05:33]} 10. Bxf6 {[%emt 0:00:59]} Bxf6 {[%emt 0:00:28]} 11. O-O-O {[%emt 0:00:53]} Nd7 {[%emt 0:02:24]} 12. e4 {[%emt 0:04:31]} O-O {[%emt 0:12:43]} 13. h5 {[%emt 0:03:47]} Nc5 {[%emt 0:01:06]} 14. Qc2 {[%emt 0:00:20]} g5 {[%emt 0:08:47]} 15. exf5 {[%emt 0:04:24]} g4 {[%emt 0:00:59]} 16. Nh2 {[%emt 0:02:22]} Bg5 {[%emt 0:03:34]} 17. Bd3 {[%emt 0:04:01]} Nxd3+ {[%emt 0:02:18]} 18. Qxd3 {[%emt 0:00:03]} Bxf5 {[%emt 0:00:13]} 19. Qc4 {[%emt 0:01:50]} Qd7 {[%emt 0:06:21]} 20. Rhf1 {[%emt 0:07:12]} b5 {[%emt 0:10:00]} 21. Qb3 {[%emt 0:09:41]} Bh7 {[%emt 0:07:39]} 0-1

[Event "Lichtenrader Herbst 2019"]
[Site "Berlin"]
[Date "2019.10.12"]
[Round "1.8"]
[White "Postler, Reinhard"]
[Black "Ibrahim, Kinan"]
[Result "1-0"]
[ECO "B38"]
[WhiteElo "2240"]
[BlackElo "1622"]
[Annotator "NA"]
[PlyCount "47"]
[EventDate "2019.10.12"]
[EventType "swiss"]
[EventCountry "GER"]
[SourceTitle "playchess.com"]
[Source "ChessBase"]
[SourceQuality "1"]
[TimeControl "40/5400+30:1800+30"]

1. e4 {[%emt 0:00:00]} c5 {[%emt 0:00:15]} 2. Nf3 {[%emt 0:00:00]} Nc6 {[%emt 0:00:06]} 3. d4 {[%emt 0:00:00]} cxd4 {[%emt 0:00:12]} 4. Nxd4 {[%emt 0:00:00]} g6 {[%emt 0:00:25]} 5. c4 {[%emt 0:00:28]} Bg7 {[%emt 0:00:12]} 6. Be3 {[%emt 0:00:24]} d6 {[%emt 0:04:30]} 7. Nc3 {[%emt 0:00:21]} Nf6 {[%emt 0:00:18]} 8. Be2 {[%emt 0:01:40]} Bd7 {[%emt 0:00:27]} 9. O-O {[%emt 0:00:48]} Qc7 {[%emt 0:01:50]} 10. Rc1 {[%emt 0:01:08]} Nxd4 {[%emt 0:05:50]} 11. Bxd4 {[%emt 0:02:41]} Bc6 {[%emt 0:06:48]} 12. Nd5 {[%emt 0:17:48]} Bxd5 {[%emt 0:03:37]} 13. cxd5 {[%emt 0:00:45]} Qd7 {[%emt 0:00:29]} 14. Qb3 {[%emt 0:02:49]} a6 {[%emt 0:00:59]} 15. Bb6 {[%emt 0:07:15]} Nxe4 {[%emt 0:04:50]} 16. Rc7 {[%emt 0:00:43]} Nc5 {[%emt 0:03:28]} 17. Qc4 {[%emt 0:00:19]} Qa4 {[%emt 0:00:57]} 18. b4 {[%emt 0:00:12]} h5 {[%emt 0:11:48]} 19. bxc5 {[%emt 0:00:25]} Qxc4 {[%emt 0:00:07]} 20. Bxc4 {[%emt 0:00:07]} Bd4 {[%emt 0:00:37]} 21. Rxb7 {[%emt 0:04:33]} Rc8 {[%emt 0:03:21]} 22. c6 {[%emt 0:03:20]} Bxb6 {[%emt 0:00:24]} 23. Rxb6 {[%emt 0:00:02]} O-O {[%emt 0:00:08]} 24. Bxa6 {[%emt 0:00:07]} 1-0

[Event "Lichtenrader Herbst 2019"]
[Site "Berlin"]
[Date "2019.10.13"]
[Round "2.1"]
[White "Kovalev, Andrei"]
[Black "Fenske, Nils"]
[Result "1-0"]
[ECO "B07"]
[WhiteElo "2511"]
[BlackElo "1821"]
[Annotator "ChessBase"]
[PlyCount "59"]
[EventDate "2019.10.12"]
[EventType "swiss"]
[EventCountry "GER"]
[SourceTitle "playchess.com"]
[Source "ChessBase"]
[SourceQuality "1"]
[TimeControl "40/5400+30:1800+30"]

1. e4 {[%emt 0:00:00]} d6 {[%emt 0:00:00]} 2. d4 {[%emt 0:00:00]} Nf6 {[%emt 0:00:00]} 3. Nc3 {[%emt 0:00:05]} g6 {[%emt 0:00:00]} 4. Be3 {[%emt 0:00:20]} c6 {[%emt 0:00:00]} 5. Nf3 {[%emt 0:00:10]} Nbd7 {[%emt 0:01:04]} 6. h3 {[%emt 0:03:42]} Qc7 {[%emt 0:04:25]} 7. Qd2 {[%emt 0:05:57]} b5 {[%emt 0:00:53]} 8. Bd3 {[%emt 0:00:21]} Bg7 {[%emt 0:03:42]} 9. O-O {[%emt 0:00:17]} O-O {[%emt 0:00:05]} 10. Ne2 {[%emt 0:05:13]} Bb7 {[%emt 0:02:54]} 11. Ng3 {[%emt 0:02:16]} e5 {[%emt 0:02:32]} 12. dxe5 {[%emt 0:00:15]} dxe5 {[%emt 0:00:04]} 13. a4 {[%emt 0:00:08]} a6 {[%emt 0:00:35]} 14. c4 {[%emt 0:03:16]} bxc4 {[%emt 0:22:27]} 15. Bxc4 {[%emt 0:00:21]} c5 {[%emt 0:01:40]} 16. Qc2 {[%emt 0:04:21]} Qc6 {[%emt 0:06:23]} 17. Rfd1 {[%emt 0:03:43]} Rfe8 {[%emt 0:12:43]} 18. a5 {[%emt 0:03:49]} Re7 {[%emt 0:07:39]} 19. Rac1 {[%emt 0:09:31]} Rc8 {[%emt 0:03:10]} 20. b4 {[%emt 0:04:30]} Qc7 {[%emt 0:04:36]} 21. Qd3 {[%emt 0:06:03]} Ra8 {[%emt 0:05:52]} 22. bxc5 {[%emt 0:01:58]} Bf8 {[%emt 0:09:07]} 23. c6 {[%emt 0:06:46]} Bxc6 {[%emt 0:00:21]} 24. Bd5 {[%emt 0:00:11]} Nxd5 {[%emt 0:01:02]} 25. exd5 {[%emt 0:00:24]} Bb5 {[%emt 0:00:24]} 26. Rxc7 {[%emt 0:00:42]} Bxd3 {[%emt 0:00:07]} 27. Rxd3 {[%emt 0:01:08]} e4 {[%emt 0:00:08]} 28. Nxe4 {[%emt 0:00:05]} Ne5 {[%emt 0:07:20]} 29. Rxe7 {[%emt 0:00:36]} Nxd3 {[%emt 0:00:03]} 30. Rb7 {[%emt 0:01:13]} 1-0

[Event "Lichtenrader Herbst 2019"]
[Site "Berlin"]
[Date "2019.10.13"]
[Round "2.2"]
[White "Matthes, Aaron"]
[Black "Starostits, Ilmars"]
[Result "0-1"]
[ECO "A25"]
[WhiteElo "1995"]
[BlackElo "2479"]
[Annotator "ChessBase"]
[PlyCount "64"]
[EventDate "2019.10.12"]
[EventType "swiss"]
[EventCountry "GER"]
[SourceTitle "playchess.com"]
[Source "ChessBase"]
[SourceQuality "1"]
[TimeControl "40/5400+30:1800+30"]

1. c4 {[%emt 0:00:00]} e5 {[%emt 0:00:00]} 2. g3 {[%emt 0:00:00]} Nc6 {[%emt 0:00:00]} 3. Bg2 {[%emt 0:00:00]} Bc5 {[%emt 0:00:00]} 4. Nc3 {[%emt 0:00:03]} a6 {[%emt 0:00:01]} 5. e3 {[%emt 0:00:20]} d6 {[%emt 0:00:03]} 6. Nge2 {[%emt 0:00:09]} Ba7 {[%emt 0:00:04]} 7. d4 {[%emt 0:00:57]} Nge7 {[%emt 0:00:05]} 8. b4 {[%emt 0:04:33]} exd4 {[%emt 0:03:53]} 9. exd4 {[%emt 0:00:16]} Nxb4 {[%emt 0:01:50]} 10. Qa4+ {[%emt 0:00:16]} Nbc6 {[%emt 0:00:39]} 11. d5 {[%emt 0:03:24]} b5 {[%emt 0:00:05]} 12. cxb5 {[%emt 0:07:45]} axb5 {[%emt 0:00:21]} 13. Qxb5 {[%emt 0:06:03]} Ba6 {[%emt 0:00:10]} 14. Qb3 {[%emt 0:00:07]} Ne5 {[%emt 0:01:48]} 15. Qa4+ {[%emt 0:14:08]} Kf8 {[%emt 0:00:43]} 16. Be4 {[%emt 0:08:59]} f5 {[%emt 0:16:41]} 17. Nf4 {[%emt 0:03:34]} Bc8 {[%emt 0:00:17]} 18. Bc2 {[%emt 0:02:40]} Bxf2+ {[%emt 0:01:13]} 19. Kxf2 {[%emt 0:02:01]} Rxa4 {[%emt 0:00:03]} 20. Bxa4 {[%emt 0:00:05]} N7g6 {[%emt 0:01:16]} 21. Nce2 {[%emt 0:00:51]} Nxf4 {[%emt 0:00:43]} 22. Bxf4 {[%emt 0:00:17]} g5 {[%emt 0:01:09]} 23. Bxe5 {[%emt 0:01:24]} dxe5 {[%emt 0:00:04]} 24. Bb3 {[%emt 0:00:04]} Kg7 {[%emt 0:00:26]} 25. Rhc1 {[%emt 0:00:44]} f4 {[%emt 0:01:30]} 26. gxf4 {[%emt 0:01:13]} gxf4 {[%emt 0:01:21]} 27. Rc2 {[%emt 0:00:04]} Bf5 {[%emt 0:00:44]} 28. Rg1+ {[%emt 0:00:13]} Bg6 {[%emt 0:00:16]} 29. Rc6 {[%emt 0:00:29]} Rf8 {[%emt 0:00:53]} 30. Rgc1 {[%emt 0:01:27]} Qh4+ {[%emt 0:00:18]} 31. Kf1 {[%emt 0:00:18]} Qxh2 {[%emt 0:00:20]} 32. Rxc7+ {[%emt 0:00:03]} Kh6 {[%emt 0:00:04]} 0-1